fUSD/lending_fUSD_20240827
["ID","MTS","AMOUNT","RATE_DAILY","PERIOD"]
[336373730,1724795449133,-28276.42820793,0.00011,2]
[336373734,1724795449167,-4259.84581779,0.00010899,2]
[336373736,1724795449177,-38593.23524301,0.00011,2]
[336373738,1724795449188,-1763.70750528,0.00011,2]
[336373740,1724795449200,-5442.80838003,0.00011,2]
[336373742,1724795449213,-1030.85413272,0.00011,2]
[336373746,1724795449243,-3023.2344,0.00011,2]
[336373749,1724795449255,-259.08940718,0.00011,2]
[336373751,1724795449267,-6132.4263,0.00011,2]
[336373753,1724795449280,-734.86714683,0.00011,2]
[336373755,1724795449293,-906.315,0.00011,2]
[336375456,1724795477917,453.04,8.219e-05,2]
[336375457,1724795536171,184.66,9.853e-05,2]
[336375458,1724795602966,500.0,0.00024932,120]
[336375460,1724795671267,23900.0,9.848e-05,2]
[336375464,1724795692885,328.0,9.864e-05,2]
[336375465,1724795744367,971.3,0.00025,120]
[336375466,1724795749845,208.85970417,9.91e-05,2]
[336375467,1724795780681,346.0,9.77e-05,2]
[336375468,1724795799677,173.61410253,9.91e-05,2]
[336375472,1724795974493,447.22,8.219e-05,2]
[336375670,1724796029971,250.0,9.716e-05,2]
[336375671,1724796108949,199.33,9.727e-05,2]
[336375672,1724796203882,500.0,0.00024932,120]
[336375673,1724796212355,737.6,9.707e-05,2]
[336375674,1724796255566,23900.0,9.689e-05,2]
[336375675,1724796275045,542.84,9.694e-05,2]
[336375676,1724796315134,150.0,9.888e-05,2]
[336375677,1724796349180,494.75,9.766e-05,2]
[336375678,1724796349365,20417.05914824,9.694e-05,2]
[336375679,1724796359197,291.75703505,9.694e-05,2]
[336375680,1724796362389,1270.45559804,9.694e-05,2]
[336375681,1724796375046,600.0,9.694e-05,2]
[336375682,1724796388007,622.02098316,9.694e-05,2]
[336375683,1724796401517,3203.02345324,9.694e-05,2]
[336375690,1724796477368,9245.06408978,9.694e-05,2]
[336375691,1724796483392,1270.45559804,9.694e-05,2]
[336375692,1724796496525,1917.23891588,9.694e-05,2]
[336375693,1724796544130,250.0,9.626e-05,2]
[336375738,1724796573926,1266.86725872,9.694e-05,2]
[336375739,1724796577064,260.79,9.636e-05,2]
[336375743,1724796603475,442.06,8.219e-05,2]
[336375770,1724796632204,-1081.0,9.961e-05,2]
[336375771,1724796632220,-253.82565445,9.988e-05,2]
[336375772,1724796632229,-186.03740953,9.999e-05,2]
[336375773,1724796632239,-11478.85017672,9.999e-05,2]
[336375774,1724796632249,-300.0,0.00010008,2]
[336375775,1724796632259,-432.79780732,0.00010026,2]
[336375776,1724796632269,-173.873026,0.00010087,2]
[336375777,1724796632279,-346.0,0.0001009,2]
[336375778,1724796632288,-499.99,0.00010097,2]
[336375779,1724796632298,-1192.2078141,0.00010097,2]
[336375780,1724796632308,-1140.6760176,0.00010097,2]
[336375781,1724796632317,-400.0,0.000102,3]
[336375782,1724796632326,-150.99,0.000102,2]
[336375783,1724796632335,-426.91,0.000103,2]
[336375784,1724796632348,-800.0,0.000103,3]
[336375785,1724796632358,-556.42,0.000103,2]
[336375786,1724796632367,-421.62,0.000104,2]
[336375787,1724796632377,-1200.0,0.000104,3]
[336375788,1724796632386,-346.0,0.0001042,2]
[336375789,1724796632396,-3847.45,0.0001042,2]
[336375790,1724796632407,-420.25,0.0001042,2]
[336375791,1724796632416,-442.06,0.00010457,2]
[336375792,1724796632426,-155.0,0.00010471,2]
[336375793,1724796632436,-500.0,0.0001048,2]
[336375794,1724796632445,-500.0,0.00010489,2]
[336375795,1724796632459,-500.0,0.00010497,2]
[336375796,1724796632469,-1600.0,0.000105,3]
[336375797,1724796632478,-1057.00154804,0.00010505,2]
[336375798,1724796632487,-500.0,0.00010506,2]
[336375799,1724796632497,-500.0,0.00010515,2]
[336375800,1724796632505,-500.0,0.00010524,2]
[336375801,1724796632514,-150.0,0.00010524,2]
[336375802,1724796632523,-500.0,0.00010533,2]
[336375803,1724796632533,-500.0,0.00010541,2]
[336375804,1724796632543,-500.0,0.0001055,2]
[336375805,1724796632553,-500.0,0.00010559,2]
[336375806,1724796632563,-1511.33349361,0.00010566,2]
[336375807,1724796632572,-500.0,0.00010568,2]
[336375808,1724796632581,-500.0,0.00010577,2]
[336375809,1724796632591,-500.0,0.00010585,2]
[336375810,1724796632600,-173.873026,0.00010592,2]
[336375811,1724796632609,-500.0,0.00010594,2]
[336375812,1724796632619,-2000.0,0.000106,3]
[336375813,1724796632629,-500.0,0.00010603,2]
[336375814,1724796632638,-500.0,0.00010612,2]
[336375815,1724796632648,-500.0,0.00010621,2]
[336375816,1724796632657,-500.0,0.00010629,2]
[336375818,1724796632667,-500.0,0.00010638,2]
[336375820,1724796632676,-500.0,0.00010647,2]
[336375822,1724796632686,-500.0,0.00010656,2]
[336375824,1724796632696,-500.0,0.00010665,2]
[336375826,1724796632705,-500.0,0.00010673,2]
[336375828,1724796632718,-500.0,0.00010682,2]
[336375830,1724796632728,-500.0,0.00010691,2]
[336375831,1724796632737,-2114.38838798,0.00010699,2]
[336375833,1724796632747,-500.0,0.000107,2]
[336375835,1724796632756,-400.0,0.000107,3]
[336375837,1724796632767,-687.96190226,0.00010713,2]
[336375839,1724796632776,-613.89514581,0.00010713,2]
[336375841,1724796632785,-346.0,0.0001075,2]
[336375843,1724796632795,-13109.18575486,0.00010789,2]
[336375845,1724796632804,-73466.6068,0.00010799,2]
[336375847,1724796632814,-777.6120399,0.00010799,2]
[336375849,1724796632823,-400.0,0.000108,3]
[336375851,1724796632833,-557.0,0.00010851,2]
[336375853,1724796632842,-447.0,0.00010851,2]
[336375855,1724796632851,-1137.0,0.00010851,2]
[336375857,1724796632863,-810.0,0.00010851,2]
[336375859,1724796632873,-1897.0,0.00010851,2]
[336375861,1724796632882,-552.0,0.00010851,2]
[336375863,1724796632891,-1150.0,0.00010851,2]
[336375865,1724796632901,-1654.221,0.00010851,2]
[336375867,1724796632910,-231.63322265,0.00010852,2]
[336375869,1724796632920,-717.32491627,0.00010852,2]
[336375871,1724796632930,-17128.472,0.00010858,2]
[336375873,1724796632939,-3028.0524,0.00010858,2]
[336375875,1724796632949,-886.3381,0.00010858,2]
[336375877,1724796632962,-225.0512,0.00010858,2]
[336375879,1724796632972,-547.48970731,0.00010861,2]
[336375881,1724796632981,-155.0,0.00010861,2]
[336375882,1724796632990,-211.31464141,0.00010862,2]
[336375885,1724796633000,-203.50479343,0.00010862,2]
[336375886,1724796633009,-304.12480458,0.00010888,2]
[336375888,1724796633024,-454.75953035,0.00010888,2]
[336375889,1724796633034,-419.42427568,0.00010888,2]
[336375891,1724796633043,-1656.41152646,0.0001089,2]
[336375893,1724796633054,-384.08921,0.0001089,2]
[336375895,1724796633064,-8166.0064,0.00010891,2]
[336375897,1724796633075,-3565.87,0.00010898,2]
[336375899,1724796633085,-475.1075,0.00010898,2]
[336375901,1724796633097,-56048.7984651,0.00010898,2]
[336375904,1724796633111,-744.74087495,0.00010898,2]
[336375908,1724796633144,-5413.88325995,0.00010898,2]
[336375910,1724796633154,-4783.73143206,0.00010899,2]
[336375912,1724796633164,-4783.73143201,0.00010899,2]
[336375914,1724796633174,-4783.73143201,0.00010899,2]
[336375916,1724796633184,-4783.73143201,0.00010899,2]
[336375918,1724796633194,-4783.73143201,0.00010899,2]
[336375919,1724796633204,-4783.73143201,0.00010899,2]
[336375921,1724796633217,-4783.73143201,0.00010899,2]
[336375923,1724796633227,-4783.73143201,0.00010899,2]
[336375925,1724796633236,-4783.73143201,0.00010899,2]
[336375927,1724796633246,-174.17506022,0.00010899,2]
[336375929,1724796633256,-418.17640203,0.00010899,2]
[336375931,1724796633266,-527.49211794,0.00010899,2]
[336375933,1724796633276,-867.538723,0.000109,2]
[336375935,1724796633286,-375.3353,0.000109,2]
[336375937,1724796633295,-4783.73143201,0.000109,2]
[336375939,1724796633305,-400.0,0.000109,3]
[336375941,1724796633315,-198.03408236,0.000109,2]
[336375943,1724796633324,-2534.56303986,0.000109,2]
[336375945,1724796633334,-394.60484968,0.000109,2]
[336375947,1724796633343,-201.78608962,0.000109,2]
[336375949,1724796633353,-500.0,0.00010912,2]
[336375951,1724796633362,-737.6,0.0001092,2]
[336375952,1724796633371,-199.33,0.00010942,2]
[336375954,1724796633380,-500.0,0.00010945,2]
[336375956,1724796633390,-500.0,0.00010945,2]
[336375958,1724796633399,-500.0,0.00010945,2]
[336375960,1724796633409,-500.0,0.00010945,2]
[336375962,1724796633419,-500.0,0.00010945,2]
[336375964,1724796633428,-500.0,0.00010945,2]
[336375966,1724796633438,-500.0,0.00010945,2]
[336375968,1724796633448,-500.0,0.00010945,2]
[336375970,1724796633461,-500.0,0.00010945,2]
[336375972,1724796633471,-500.0,0.00010945,2]
[336375974,1724796633481,-160.7826,0.00010945,2]
[336375975,1724796633490,-3000.0,0.00010947,3]
[336375977,1724796633501,-270.73116696,0.00010949,2]
[336375979,1724796633511,-519.9064672,0.00010958,2]
[336375981,1724796633521,-304.76701351,0.00010958,2]
[336375983,1724796633531,-538.33556076,0.00010958,2]
[336375985,1724796633541,-500.0,0.00010958,2]
[336375987,1724796633551,-12460.91,0.00010958,2]
[336375989,1724796633561,-2333.1,0.00010958,2]
[336375991,1724796633570,-475.68,0.00010958,2]
[336375993,1724796633580,-500.0,0.00010958,2]
[336375995,1724796633590,-500.0,0.00010958,2]
[336375997,1724796633599,-2579.74,0.00010958,2]
[336375999,1724796633609,-644.8,0.00010958,2]
[336376001,1724796633618,-500.0,0.00010958,2]
[336376003,1724796633628,-6058.13,0.00010958,2]
[336376005,1724796633638,-4707.67,0.00010958,2]
[336376007,1724796633647,-11628.49,0.00010958,2]
[336376009,1724796633657,-500.0,0.00010958,2]
[336376011,1724796633666,-350.44661177,0.00010958,2]
[336376013,1724796633676,-500.0,0.00010958,2]
[336376015,1724796633685,-335.93298649,0.00010958,2]
[336376017,1724796633695,-500.0,0.00010958,2]
[336376019,1724796633704,-500.0,0.00010958,2]
[336376021,1724796633718,-500.0,0.00010958,2]
[336376023,1724796633727,-519.40523966,0.00010958,2]
[336376024,1724796633736,-500.0,0.00010958,2]
[336376026,1724796633746,-200.0,0.00010959,2]
[336376028,1724796633755,-180.12,0.00010959,2]
[336376030,1724796633765,-1500.0,0.00010959,2]
[336376032,1724796633775,-4249.61,0.00010959,2]
[336376034,1724796633785,-150.0,0.00010959,2]
[336376036,1724796633794,-250.0,0.00010959,2]
[336376038,1724796633804,-159.23,0.00010959,2]
[336376040,1724796633813,-500.0,0.00010973,2]
[336376042,1724796633823,-200.0,0.00010973,2]
[336376044,1724796633833,-500.0,0.00010973,2]
[336376045,1724796633842,-200.0,0.00010973,2]
[336376047,1724796633852,-654.43258948,0.00010979,2]
[336376048,1724796633861,-154.88,0.00010988,2]
[336376049,1724796633871,-154.88,0.00010989,2]
[336376050,1724796633880,-154.88,0.00010989,2]
[336376051,1724796633890,-287.09490521,0.00010991,2]
[336376052,1724796633899,-500.0,0.00010991,2]
[336376053,1724796633908,-500.0,0.00010991,2]
[336376054,1724796633918,-393.88038277,0.00010991,2]
[336376055,1724796633927,-500.0,0.00010991,2]
[336376056,1724796633936,-500.0,0.00010991,2]
[336376057,1724796633945,-534.47173107,0.00010991,2]
[336376058,1724796633955,-500.0,0.00010991,2]
[336376059,1724796633968,-307.08358333,0.00010991,2]
[336376060,1724796633978,-500.0,0.00010991,2]
[336376061,1724796633988,-500.0,0.00010991,2]
[336376062,1724796633999,-500.0,0.00010991,2]
[336376063,1724796634009,-284.45978343,0.00010992,2]
[336376064,1724796634021,-500.0,0.00010992,2]
[336376065,1724796634031,-169.617085,0.00010995,2]
[336376066,1724796634041,-500.0,0.00010996,2]
[336376067,1724796634051,-500.0,0.00010996,2]
[336376068,1724796634061,-500.0,0.00010996,2]
[336376069,1724796634072,-237.40595229,0.00010996,2]
[336376070,1724796634083,-252.79306851,0.00010996,2]
[336376071,1724796634094,-500.0,0.00010996,2]
[336376072,1724796634104,-500.0,0.00010996,2]
[336376073,1724796634114,-500.0,0.00010996,2]
[336376074,1724796634124,-500.30349848,0.00010996,2]
[336376075,1724796634134,-500.0,0.00010996,2]
[336376076,1724796634144,-500.0,0.00010996,2]
[336376077,1724796634154,-262.77221153,0.00010996,2]
[336376078,1724796634164,-407.48193148,0.00010996,2]
[336376079,1724796634174,-500.0,0.00010996,2]
[336376080,1724796634185,-14998.03,0.00010996,2]
[336376081,1724796634195,-500.0,0.00010996,2]
[336376082,1724796634204,-533.98050537,0.00010996,2]
[336376083,1724796634220,-518.68892134,0.00010996,2]
[336376084,1724796634229,-150.0,0.00010997,2]
[336376085,1724796634239,-150.0,0.00010997,2]
[336376086,1724796634249,-150.0,0.00010997,2]
[336376087,1724796634259,-150.0,0.00010997,2]
[336376088,1724796634269,-150.0,0.00010997,2]
[336376089,1724796634278,-211.71,0.00010997,2]
[336376090,1724796634289,-12460.91,0.00010997,2]
[336376091,1724796634298,-2333.1,0.00010997,2]
[336376092,1724796634307,-500.0,0.00010997,2]
[336376093,1724796634317,-2579.74,0.00010997,2]
[336376094,1724796634327,-2579.74,0.00010997,2]
[336376095,1724796634337,-500.0,0.00010997,2]
[336376096,1724796634348,-500.0,0.00010997,2]
[336376097,1724796634358,-6058.13,0.00010997,2]
[336376098,1724796634368,-4707.67,0.00010997,2]
[336376099,1724796634378,-4707.67,0.00010997,2]
[336376100,1724796634388,-11628.49,0.00010997,2]
[336376101,1724796634398,-11628.49,0.00010997,2]
[336376102,1724796634411,-548.21,0.00010997,2]
[336376103,1724796634422,-395.33,0.00010997,2]
[336376104,1724796634432,-169.617085,0.00010997,2]
[336376105,1724796634442,-301.90612819,0.00010998,2]
[336376106,1724796634452,-500.0,0.00010998,2]
[336376107,1724796634467,-561.19198833,0.00010998,2]
[336376108,1724796634477,-500.0,0.00010998,2]
[336376109,1724796634487,-500.0,0.00010998,2]
[336376110,1724796634498,-500.0,0.00010998,2]
[336376111,1724796634508,-500.0,0.00010998,2]
[336376112,1724796634519,-500.0,0.00010998,2]
[336376113,1724796634529,-500.0,0.00010998,2]
[336376114,1724796634539,-500.0,0.00010998,2]
[336376115,1724796634549,-500.0,0.00010998,2]
[336376116,1724796634559,-575.53028448,0.00010998,2]
[336376117,1724796634569,-500.0,0.00010998,2]
[336376118,1724796634578,-500.0,0.00010998,2]
[336376119,1724796634588,-500.0,0.00010998,2]
[336376120,1724796634598,-500.0,0.00010998,2]
[336376121,1724796634608,-500.0,0.00010998,2]
[336376122,1724796634617,-500.0,0.00010998,2]
[336376123,1724796634628,-502.81159207,0.00010998,2]
[336376124,1724796634638,-500.0,0.00010998,2]
[336376125,1724796634647,-174.03,0.00010998,2]
[336376126,1724796634658,-500.0,0.00010998,2]
[336376127,1724796634668,-270.93631491,0.00010998,2]
[336376128,1724796634678,-500.0,0.00010998,2]
[336376129,1724796634687,-500.0,0.00010998,2]
[336376130,1724796634696,-351.78,0.00010998,2]
[336376131,1724796634706,-500.0,0.00010998,2]
[336376132,1724796634721,-201.43253298,0.00010998,2]
[336376133,1724796634731,-18344.4291877,0.00010998,2]
[336376134,1724796634740,-150.0,0.00010998,2]
[336376135,1724796634750,-150.0,0.00010998,2]
[336376136,1724796634759,-150.0,0.00010998,2]
[336376137,1724796634769,-150.0,0.00010998,2]
[336376138,1724796634778,-150.0,0.00010998,2]
[336376139,1724796634788,-500.0,0.00010998,2]
[336376140,1724796634798,-500.0,0.00010998,2]
[336376141,1724796634808,-500.0,0.00010998,2]
[336376142,1724796634817,-500.0,0.00010998,2]
[336376143,1724796634827,-500.0,0.00010998,2]
[336376144,1724796634836,-500.0,0.00010998,2]
[336376145,1724796634845,-500.0,0.00010998,2]
[336376146,1724796634855,-500.0,0.00010998,2]
[336376147,1724796634864,-547.02888261,0.00010998,2]
[336376148,1724796634874,-500.0,0.00010998,2]
[336376149,1724796634883,-500.0,0.00010998,2]
[336376150,1724796634893,-500.0,0.00010998,2]
[336376151,1724796634902,-500.0,0.00010998,2]
[336376152,1724796634912,-500.0,0.00010998,2]
[336376153,1724796634922,-500.0,0.00010998,2]
[336376154,1724796634931,-500.0,0.00010998,2]
[336376155,1724796635132,-500.0,0.00010998,2]
[336376156,1724796635141,-500.0,0.00010998,2]
[336376157,1724796635151,-500.0,0.00010998,2]
[336376158,1724796635160,-12460.91,0.00010998,2]
[336376159,1724796635170,-12460.91,0.00010998,2]
[336376160,1724796635180,-12460.91,0.00010998,2]
[336376161,1724796635190,-12460.91,0.00010998,2]
[336376162,1724796635200,-12460.91,0.00010998,2]
[336376163,1724796635212,-2333.1,0.00010998,2]
[336376164,1724796635224,-2333.1,0.00010998,2]
[336376165,1724796635234,-2333.1,0.00010998,2]
[336376166,1724796635243,-2333.1,0.00010998,2]
[336376167,1724796635253,-2333.1,0.00010998,2]
[336376168,1724796635262,-500.0,0.00010998,2]
[336376169,1724796635272,-500.0,0.00010998,2]
[336376170,1724796635281,-183.05,0.00010998,2]
[336376171,1724796635290,-14998.03,0.00010998,2]
[336376172,1724796635300,-14998.03,0.00010998,2]
[336376173,1724796635310,-14998.03,0.00010998,2]
[336376174,1724796635319,-14998.03,0.00010998,2]
[336376175,1724796635329,-14998.03,0.00010998,2]
[336376176,1724796635338,-500.0,0.00010998,2]
[336376177,1724796635347,-500.0,0.00010998,2]
[336376178,1724796635357,-500.0,0.00010998,2]
[336376179,1724796635367,-500.0,0.00010998,2]
[336376180,1724796635376,-500.0,0.00010998,2]
[336376181,1724796635387,-2579.74,0.00010998,2]
[336376182,1724796635396,-2579.74,0.00010998,2]
[336376183,1724796635407,-2579.74,0.00010998,2]
[336376184,1724796635417,-2579.74,0.00010998,2]
[336376185,1724796635426,-500.0,0.00010998,2]
[336376186,1724796635436,-500.0,0.00010998,2]
[336376187,1724796635446,-6058.13,0.00010998,2]
[336376188,1724796635456,-500.0,0.00010998,2]
[336376189,1724796635471,-6058.13,0.00010998,2]
[336376190,1724796635481,-6058.13,0.00010998,2]
[336376191,1724796635491,-500.0,0.00010998,2]
[336376192,1724796635501,-6058.13,0.00010998,2]
[336376193,1724796635510,-6058.13,0.00010998,2]
[336376194,1724796635520,-4707.67,0.00010998,2]
[336376195,1724796635531,-4707.67,0.00010998,2]
[336376196,1724796635541,-4707.67,0.00010998,2]
[336376197,1724796635552,-4707.67,0.00010998,2]
[336376198,1724796635562,-11628.49,0.00010998,2]
[336376199,1724796635572,-11628.49,0.00010998,2]
[336376200,1724796635582,-11628.49,0.00010998,2]
[336376201,1724796635592,-11628.49,0.00010998,2]
[336376202,1724796635602,-500.0,0.00010998,2]
[336376203,1724796635611,-500.0,0.00010998,2]
[336376204,1724796635621,-390.16911375,0.00010998,2]
[336376205,1724796635631,-748.0,0.00010999,2]
[336376206,1724796635641,-1000.0,0.00010999,2]
[336376207,1724796635651,-1000.0,0.00010999,2]
[336376208,1724796635661,-1000.0,0.00010999,2]
[336376209,1724796635671,-1000.0,0.00010999,2]
[336376210,1724796635681,-1000.0,0.00010999,2]
[336376211,1724796635690,-758.7122,0.00010999,2]
[336376212,1724796635700,-500.0,0.00010999,2]
[336376213,1724796635709,-500.0,0.00010999,2]
[336376214,1724796635722,-500.0,0.00010999,2]
[336376215,1724796635731,-500.0,0.00010999,2]
[336376216,1724796635741,-500.0,0.00010999,2]
[336376217,1724796635751,-384.21357656,0.00010999,2]
[336376218,1724796635760,-500.0,0.00010999,2]
[336376219,1724796635769,-500.0,0.00010999,2]
[336376220,1724796635778,-500.0,0.00010999,2]
[336376221,1724796635787,-500.0,0.00010999,2]
[336376222,1724796635797,-500.0,0.00010999,2]
[336376223,1724796635806,-500.0,0.00010999,2]
[336376224,1724796635816,-500.0,0.00010999,2]
[336376225,1724796635826,-500.0,0.00010999,2]
[336376226,1724796635835,-500.0,0.00010999,2]
[336376227,1724796635845,-500.0,0.00010999,2]
[336376228,1724796635855,-500.0,0.00010999,2]
[336376229,1724796635864,-500.0,0.00010999,2]
[336376230,1724796635873,-500.0,0.00010999,2]
[336376231,1724796635883,-500.0,0.00010999,2]
[336376232,1724796635892,-458.66771045,0.00010999,2]
[336376233,1724796635902,-500.0,0.00010999,2]
[336376234,1724796635912,-500.0,0.00010999,2]
[336376235,1724796635922,-500.0,0.00010999,2]
[336376236,1724796635932,-500.0,0.00010999,2]
[336376237,1724796635941,-500.0,0.00010999,2]
[336376238,1724796635950,-500.0,0.00010999,2]
[336376239,1724796635960,-500.0,0.00010999,2]
[336376240,1724796635974,-500.0,0.00010999,2]
[336376241,1724796635984,-500.0,0.00010999,2]
[336376242,1724796635994,-500.0,0.00010999,2]
[336376243,1724796636006,-566.96195975,0.00010999,2]
[336376244,1724796636016,-340.35250464,0.00010999,2]
[336376245,1724796636026,-500.0,0.00010999,2]
[336376246,1724796636035,-500.0,0.00010999,2]
[336376247,1724796636046,-475.37318507,0.00010999,2]
[336376248,1724796636055,-609.64,0.00010999,2]
[336376249,1724796636065,-12460.91,0.00010999,2]
[336376250,1724796636074,-12460.91,0.00010999,2]
[336376251,1724796636085,-12460.91,0.00010999,2]
[336376252,1724796636095,-12460.91,0.00010999,2]
[336376253,1724796636106,-12460.91,0.00010999,2]
[336376254,1724796636115,-12460.91,0.00010999,2]
[336376255,1724796636125,-12460.91,0.00010999,2]
[336376256,1724796636134,-12460.91,0.00010999,2]
[336376257,1724796636144,-12460.91,0.00010999,2]
[336376258,1724796636153,-12460.91,0.00010999,2]
[336376259,1724796636163,-12460.91,0.00010999,2]
[336376260,1724796636172,-2333.1,0.00010999,2]
[336376261,1724796636181,-12460.91,0.00010999,2]
[336376262,1724796636190,-2333.1,0.00010999,2]
[336376263,1724796636200,-12460.91,0.00010999,2]
[336376264,1724796636210,-2333.1,0.00010999,2]
[336376265,1724796636222,-12460.91,0.00010999,2]
[336376266,1724796636232,-2333.1,0.00010999,2]
[336376267,1724796636241,-12460.91,0.00010999,2]
[336376268,1724796636251,-2333.1,0.00010999,2]
[336376269,1724796636260,-12460.91,0.00010999,2]
[336376270,1724796636270,-12461.11742464,0.00010999,2]
[336376271,1724796636280,-2333.1,0.00010999,2]
[336376272,1724796636289,-2333.1,0.00010999,2]
[336376273,1724796636299,-2333.1,0.00010999,2]
[336376274,1724796636309,-2333.1,0.00010999,2]
[336376275,1724796636319,-2333.1,0.00010999,2]
[336376276,1724796636329,-2333.1,0.00010999,2]
[336376277,1724796636339,-2333.1,0.00010999,2]
[336376278,1724796636348,-2333.1,0.00010999,2]
[336376279,1724796636359,-2333.1,0.00010999,2]
[336376280,1724796636369,-2333.1,0.00010999,2]
[336376281,1724796636379,-2333.1,0.00010999,2]
[336376282,1724796636389,-2333.1,0.00010999,2]
[336376283,1724796636399,-14998.03,0.00010999,2]
[336376284,1724796636410,-14998.03,0.00010999,2]
[336376285,1724796636420,-14998.03,0.00010999,2]
[336376286,1724796636429,-14998.03,0.00010999,2]
[336376287,1724796636439,-14998.03,0.00010999,2]
[336376288,1724796636449,-14998.03,0.00010999,2]
[336376289,1724796636459,-14998.03,0.00010999,2]
[336376290,1724796636477,-14998.03,0.00010999,2]
[336376291,1724796636486,-14998.03,0.00010999,2]
[336376292,1724796636497,-14998.03,0.00010999,2]
[336376293,1724796636507,-14998.03,0.00010999,2]
[336376294,1724796636516,-14998.03,0.00010999,2]
[336376295,1724796636526,-14998.03,0.00010999,2]
[336376296,1724796636535,-14998.03,0.00010999,2]
[336376297,1724796636545,-14998.03,0.00010999,2]
[336376298,1724796636554,-14998.03,0.00010999,2]
[336376299,1724796636563,-14998.03,0.00010999,2]
[336376300,1724796636572,-14998.07197055,0.00010999,2]
[336376301,1724796636582,-267.88480378,0.00010999,2]
[336376302,1724796636591,-2579.74,0.00010999,2]
[336376303,1724796636601,-2579.74,0.00010999,2]
[336376304,1724796636612,-2579.74,0.00010999,2]
[336376305,1724796636621,-2579.74,0.00010999,2]
[336376306,1724796636630,-2579.74,0.00010999,2]
[336376307,1724796636640,-2579.74,0.00010999,2]
[336376308,1724796636649,-2579.74,0.00010999,2]
[336376309,1724796636659,-2579.74,0.00010999,2]
[336376310,1724796636669,-2579.74,0.00010999,2]
[336376311,1724796636678,-2579.74,0.00010999,2]
[336376312,1724796636688,-2579.74,0.00010999,2]
[336376313,1724796636698,-2579.74,0.00010999,2]
[336376314,1724796636707,-2579.74,0.00010999,2]
[336376315,1724796636722,-2579.74,0.00010999,2]
[336376316,1724796636731,-2579.74,0.00010999,2]
[336376317,1724796636740,-2579.74,0.00010999,2]
[336376318,1724796636750,-2579.76,0.00010999,2]
[336376319,1724796636760,-500.0,0.00010999,2]
[336376320,1724796636769,-6058.13,0.00010999,2]
[336376321,1724796636779,-500.0,0.00010999,2]
[336376322,1724796636788,-6058.13,0.00010999,2]
[336376323,1724796636798,-500.0,0.00010999,2]
[336376324,1724796636808,-6058.13,0.00010999,2]
[336376325,1724796636818,-500.0,0.00010999,2]
[336376326,1724796636828,-6058.13,0.00010999,2]
[336376327,1724796636837,-500.0,0.00010999,2]
[336376328,1724796636847,-500.0,0.00010999,2]
[336376329,1724796636857,-6058.13,0.00010999,2]
[336376330,1724796636866,-500.0,0.00010999,2]
[336376331,1724796636876,-6058.13,0.00010999,2]
[336376332,1724796636886,-595.42513965,0.00010999,2]
[336376333,1724796636895,-6058.13,0.00010999,2]
[336376334,1724796636905,-6058.13,0.00010999,2]
[336376335,1724796636915,-6058.13,0.00010999,2]
[336376336,1724796636924,-6058.13,0.00010999,2]
[336376337,1724796636934,-6058.13,0.00010999,2]
[336376338,1724796636943,-6058.13,0.00010999,2]
[336376339,1724796636953,-6058.13,0.00010999,2]
[336376340,1724796636967,-6058.13,0.00010999,2]